Cogmind - Beta 16 @@@ ROGUE MODE // 2026.01.29 @ 14:32:36 Player: delto Result: Destroyed by B-86 Titan via exploding Fusion Modulator Performance ------------- Evolutions (6) 3000 Regions Visited (10) 2000 Robots Destroyed (45) 225 Value Destroyed (1019) 1019 Prototype IDs (0) 0 Alien Tech Used (0) 0 Bonus (105) 105 TOTAL SCORE: 6349 Bonus ------- Follower Combat Kills 105 Cogmind --------- Core Integrity 0/1150 Matter 6/300 Energy 99/100 System Corruption 0% Temperature Cool (26) Movement Hovering (70) Location -4/Factory Parts ------- > --- POWER (3) -------- (None) > --- PROPULSION (6) --- Improved Gyrokinetic Inverter > --- UTILITY (7) ------ Advanced Signal Interpreter Improved Targeting Computer Improved Corruption Screen > --- WEAPON (3) ------- (None) > --- INVENTORY (5) ---- Faulty Enhanced Fission Core Improved Linear Gravjet Improved Linear Gravjet Improved Linear Gravjet Improved Linear Gravjet Peak State ------------ > --- POWER ------------ Light Deuterium Engine Light Deuterium Engine Light Nuclear Core > --- PROPULSION ------- Airjet Airjet Airjet Gravmag System Combat Gravmag System > --- UTILITY ---------- Enhanced Optical Array Advanced Sensor Array Advanced Signal Interpreter Transmission Jammer Improved Hacking Suite Dynamic Insulation System > --- WEAPON ----------- Heavy Machine Gun Improved Remote Datajack Improved Plasma Cutter > --- INVENTORY -------- Energy Well Makeshift Cloaking Device Improved Corruption Screen System Restoration Module [Rating: 75] Favorites ----------- Power Light Deuterium Engine Engine Light Deuterium Engine Power Core Light Nuclear Core Reactor Antimatter Reactor Propulsion Airjet Leg Aluminum Leg Hover Unit Airjet Utility Enhanced Optical Array Device Transmission Jammer Storage Energy Well Processor Enhanced Optical Array Hackware Improved Hacking Suite Protection Improved Light Armor Plating Weapon Autogun Energy Gun Small Laser Energy Cannon Proton Cannon Ballistic Gun Autogun Ballistic Cannon Gauss Cannon Launcher Micro-nuke Launcher Special Weapon Improved Remote Datajack Build | -11 -10 -9 -8 -7 -6 -6 -6 -5 -5 -4 ------- Run | Yrd Mat Mat Mat Fac Fac Low Low Fac Ext Fac Slots Evolved 12 | . . 2 2 2 2 . . 2 . 2 Power 2 | . . . . . 1 . . 1 . . Propulsion 4 | . . 1 . 2 . . . . . 1 Utility 5 | . . 1 2 . . . . 1 . 1 Weapon 1 | . . . . . 1 . . . . . Parts Attached 81 | 7 4 8 14 5 2 9 . 6 12 14 Power 6 | 1 . . 1 . 1 . . 1 . 2 Engine 3 | 1 . . 1 . . . . 1 . . Core 2 | . . . . . 1 . . . . 1 Reactor 1 | . . . . . . . . . . 1 Propulsion 21 | 2 . 4 4 1 . . . 1 5 4 Treads . | . . . . . . . . . . . Leg 8 | 2 . 1 . . . . . . 4 1 Wheel . | . . . . . . . . . . . Hover 13 | . . 3 4 1 . . . 1 1 3 Flight . | . . . . . . . . . . . Utility 28 | 2 2 3 6 2 . 5 . 2 3 3 Device 13 | 1 . 1 3 1 . 3 . 1 1 2 Storage 4 | 1 2 . . . . . . . 1 . Processor 6 | . . 1 1 . . 1 . 1 1 1 Hackware 3 | . . 1 1 . . 1 . . . . Protection 2 | . . . 1 1 . . . . . . Artifact . | . . . . . . . . . . . Weapon 26 | 2 2 1 3 2 1 4 . 2 4 5 Energy Gun 7 | 2 . . 1 2 1 . . . . 1 Energy Cannon 3 | . . . . . . . . . 3 . Ballistic Gun 6 | . 2 . . . . 4 . . . . Ballistic Cannon 3 | . . . 2 . . . . . 1 . Launcher 5 | . . 1 . . . . . . . 4 Special Weapon 2 | . . . . . . . . 2 . . Impact Weapon . | . . . . . . . . . . . Slashing Weapon . | . . . . . . . . . . . Piercing Weapon . | . . . . . . . . . . . Special Melee Weapon . | . . . . . . . . . . . Unidentified Prototypes . | . . . . . . . . . . . Parts Lost 45 | . . 2 2 1 . . . 6 17 17 Power 5 | . . . . . . . . . 3 2 Propulsion 15 | . . . 1 . . . . 3 6 5 Utility 13 | . . 1 1 1 . . . 1 3 6 Weapon 12 | . . 1 . . . . . 2 5 4 Highest Loss Streak 10 | . . 1 2 1 . . . 5 10 10 To Critical Strikes . | . . . . . . . . . . . Average Backups 4 | 1 8 6 4 4 4 4 5 4 4 3 Power . | . 1 1 1 1 . . 1 . . . Propulsion . | . . . 3 1 1 1 1 . . . Utility 2 | . 2 3 . 1 1 2 3 3 4 1 Weapon . | . 2 1 . . 1 . . . . . Tool/Special . | . . . . . . . . . . . Unused Backups 25 | . 10 2 . 1 1 3 . . . 8 Power 2 | . 1 . . 1 . . . . . . Propulsion 7 | . 1 1 . . . . . . . 5 Utility 8 | . 3 . . . 1 2 . . . 2 Weapon 7 | . 4 1 . . . 1 . . . 1 Tool/Special 1 | . 1 . . . . . . . . . Average Slot Usage (%) 84 | . 100 96 99 98 99 99 100 97 91 43 Engine 7 | . 14 11 9 7 6 6 6 11 9 . Core 2 | . . . . . 6 6 6 5 4 1 Leg 7 | . 28 23 . . . . . . 1 6 Hover 16 | . . 7 27 37 33 33 33 29 22 1 Device 14 | . 14 11 17 15 13 19 20 19 16 8 Storage 3 | . 14 8 . . . . . . . 3 Processor 8 | . . 9 9 7 6 6 6 8 12 14 Hackware 3 | . . 2 13 5 . 4 6 5 3 . Protection 1 | . . . 5 9 13 2 . . . . Energy Gun 3 | . 12 . . 6 19 3 . . . . Ballistic Gun 8 | . 15 20 4 . . 16 20 13 2 . Ballistic Cannon 1 | . . . 13 8 . . . . 1 . Launcher 1 | . . 1 . . . . . . . 5 Special Weapon 1 | . . . . . . . . 1 9 . Peak Build Rating 75 | 9 12 23 38 46 54 64 64 75 74 72 Average Rating 43 | 6 10 16 34 44 53 60 64 69 68 47 On Entrance 38 | . 9 12 21 38 46 54 64 64 71 42 Avg Prop Armor Cover (%) . | . . . . . . . . . . . Naked Turns . | . . . . . . . . . . . Heaviest Build 46 | 11 20 21 25 28 37 37 29 35 37 46 Greatest Support 70 | 20 20 30 27 43 43 43 43 48 70 40 Greatest Overweight (x) 2 | . . 1 . . . . . . 1 2 Average Overweight (x) . | . . . . . . . . . . . Largest Inventory Capacity 10 | 8 10 10 5 5 5 5 5 5 5 5 Average Capacity 6 | 7 9 8 5 5 5 5 5 5 5 5 Most Carried 10 | 4 10 10 5 5 5 5 5 5 5 5 Average Carried 4 | 1 8 6 4 4 4 4 5 4 4 3 Final Capacity 10 | 8 10 5 5 5 5 5 5 5 5 5 Final Carried 7 | 4 7 4 4 4 5 5 5 4 3 5 Class Distribution -------------------- 55% | Mutant 17% | Derelict-Skirmisher 14% | Derelict-Scout 6% | Skirmisher 3% | Hacker-Mutant Dominant Class ---------------- Mutant | -10/Materials Mutant | -9/Materials Mutant | -8/Materials Mutant | -7/Factory Tank | -6/Factory Derelict-Skirmisher | -6/Lower Caves Derelict-Skirmisher | -6/Lower Caves Derelict-Scout | -5/Factory Derelict-Scout | -5/Extension Mutant | -4/Factory Resources | -11 -10 -9 -8 -7 -6 -6 -6 -5 -5 -4 ----------- Run | Yrd Mat Mat Mat Fac Fac Low Low Fac Ext Fac Matter Collected 1542 | 266 156 196 41 94 10 333 . 3 402 41 Remotely . | . . . . . . . . . . . Salvage Created 751 | 63 294 189 43 . . 20 . . 39 103 Parts 81 | 8 22 17 7 . . 3 . . 1 23 Haulers Intercepted . | . . . . . . . . . . . Recyclers Shooed 1 | . 1 . . . . . . . . . Parts Field Recycled . | . . . . . . . . . . . Retrieved Matter . | . . . . . . . . . . . Parts Self-Destructed . | . . . . . . . . . . . Prevented . | . . . . . . . . . . . Parts Restored . | . . . . . . . . . . . Kills | -11 -10 -9 -8 -7 -6 -6 -6 -5 -5 -4 ------- Run | Yrd Mat Mat Mat Fac Fac Low Low Fac Ext Fac Combat Hostiles Destroyed 28 | . 8 6 4 . . 1 . . . 9 Guns 12 | . 8 3 . . . 1 . . . . Cannons 4 | . . . 4 . . . . . . . AOE 12 | . . 3 . . . . . . . 9 Classes Destroyed 9 | 1 4 2 . . . 1 . . . 1 Worker 1 | . . 1 . . . . . . . . Builder 4 | . . 1 . . . . . . . 3 Tunneler 5 | 4 . . . . . . . . . 1 Operator 3 | . 1 1 . . . . . . . 1 Watcher 4 | . 1 2 . . . . . . 1 . Swarmer 17 | . 2 4 3 . . . . . . 8 Grunt 9 | . 6 2 1 . . . . . . . Sentry 1 | . . . . . . . . . . 1 Thief 1 | . . . . . . 1 . . . . Best Kill Streak 7 | 2 3 7 3 . . 1 . . 1 4 Combat Bots Only 5 | . 3 5 3 . . 1 . . . 4 Max Kills in Single Turn 4 | 1 1 3 1 . . 1 . . 1 4 Gunslinging . | . . . . . . . . . . . Exploded 4 | . . 2 . . . . . . . 4 Melee . | . . . . . . . . . . . Uniques/NPCs Destroyed . | . . . . . . . . . . . Combat | -11 -10 -9 -8 -7 -6 -6 -6 -5 -5 -4 -------- Run | Yrd Mat Mat Mat Fac Fac Low Low Fac Ext Fac Hostile Shots Fired 432 | . 31 62 61 . 5 2 . 27 70 174 Missed 178 | . 20 26 20 . 2 . . 10 24 76 Hits 254 | . 11 36 41 . 3 2 . 17 46 98 Melee 3 | . . . . . 1 2 . . . . Projectile 251 | . 11 36 41 . 2 . . 17 46 98 AOE 3 | . . . . . . . . . . 3 Critical Strikes 13 | . . 3 2 . . . . 2 1 5 Damage Taken 5162 | . 105 451 419 . 40 19 . 464 1188 2476 Core 1536 | . 57 26 54 . . . . 76 169 1154 Absorbed by Shields 123 | . . 4 119 . . . . . . . Core Remaining (%) 90 | 100 77 93 90 100 . . 100 . 75 . Volleys Fired 122 | 8 27 13 14 . 1 3 . 6 40 10 Largest 3 | 2 2 2 2 . 3 3 . 3 1 3 Hottest 165 | 80 80 56 80 . 165 165 . 91 47 147 Shots Fired 210 | 16 54 25 28 . 3 9 . 18 40 17 Gun 130 | 16 54 22 . . 3 9 . 18 6 2 Cannon 57 | . . . 28 . . . . . 29 . Launcher 18 | . . 3 . . . . . . . 15 Special 5 | . . . . . . . . . 5 . Kinetic 131 | . 28 22 28 . . . . 18 35 . Thermal 49 | 16 26 . . . . . . . 5 2 Explosive 18 | . . 3 . . . . . . . 15 Electromagnetic 12 | . . . . . 3 9 . . . . Robot Hit Streak 10 | 4 7 3 4 . 1 4 . 1 10 4 Robot Miss Streak 7 | 1 7 5 4 . 1 4 . 6 3 3 Penetration Max 1 | . . . . . . . . . 1 . Secondary Targets 2 | . 2 . . . . . . . . . Max Gunslinging Chain 1 | . 1 . . . . . . . . . Shots Hit Robots 95 | 10 25 8 9 . 1 5 . 2 27 8 Core Hits 63 | 4 14 12 4 . . 2 . . 5 22 Critical Kills . | . . . . . . . . . . . Critical Parts Destroyed . | . . . . . . . . . . . Critical Strikes 4 | . . . 2 . . . . . 2 . Blast 3 | . . . 2 . . . . . 1 . Sever 1 | . . . . . . . . . 1 . Melee Attacks . | . . . . . . . . . . . Impact . | . . . . . . . . . . . Slashing . | . . . . . . . . . . . Piercing . | . . . . . . . . . . . Sneak Attacks . | . . . . . . . . . . . Combat Hostiles . | . . . . . . . . . . . Follow-up Attacks . | . . . . . . . . . . . Damage Inflicted 3667 | 109 340 323 311 . 18 82 . 74 896 1514 Guns 766 | 109 340 118 . . 18 82 . 74 . 25 Cannons 1122 | . . . 311 . . . . . 811 . Explosions 1683 | . . 205 . . . . . . . 1478 Melee . | . . . . . . . . . . . Ramming 11 | . . . . . . . . . . 11 Kinetic 1512 | . 198 118 311 . . . . 74 811 . Thermal 693 | 109 142 . . . . . . . 85 357 Explosive 1351 | . . 205 . . . . . . . 1146 Electromagnetic 100 | . . . . . 18 82 . . . . Impact . | . . . . . . . . . . . Slashing . | . . . . . . . . . . . Piercing . | . . . . . . . . . . . Highest Corruption . | . . . . . . . . . . . Average Corruption . | . . . . . . . . . . . Corruption Purged . | . . . . . . . . . . . Corruption Blocked 4 | . . . . . . . . . . 4 Overload Shots . | . . . . . . . . . . . Overflow Damage 217 | . . 3 . . . . . . 12 202 Projectiles 12 | . . . . . . . . . 12 . Explosions 205 | . . 3 . . . . . . . 202 Melee . | . . . . . . . . . . . Knockbacks 3 | . . . 2 . . . . . 1 . Impact . | . . . . . . . . . . . Kinetic 3 | . . . 2 . . . . . 1 . Secondary . | . . . . . . . . . . . Self-Inflicted Damage 395 | . . . . . . . . . . 395 Shots 6 | . . . . . . . . . . 6 Rammed . | . . . . . . . . . . . Targets Rammed 2 | . . . . . . . . . . 2 Kicked 2 | . . . . . . . . . . 2 Crushed . | . . . . . . . . . . . Highest Temperature 300 | 54 144 20 158 . 110 300 . 292 262 18 Average Temperature 82 | 25 40 8 73 . 79 154 . 153 37 7 Received Heat Transfer 870 | . 36 174 171 . . . . 144 201 144 Effects 1 | . . . . . . . . 1 . . Energy Bleed 1 | . . . . . . . . 1 . . Siege Activations . | . . . . . . . . . . . Martial Activations . | . . . . . . . . . . . Shielding Activations . | . . . . . . . . . . . Robots Disrupted . | . . . . . . . . . . . Combat Hostiles . | . . . . . . . . . . . Robots Corrupted . | . . . . . . . . . . . Combat Hostiles . | . . . . . . . . . . . Parts Fried . | . . . . . . . . . . . Impact Corruptions . | . . . . . . . . . . . Robots Melted . | . . . . . . . . . . . Combat Hostiles . | . . . . . . . . . . . Parts Melted 2 | 1 1 . . . . . . . . . Heat Transferred 1047 | 250 325 . . . . . . . 185 287 Parts Sabotaged . | . . . . . . . . . . . Parts Stolen . | . . . . . . . . . . . Parts Stripped . | . . . . . . . . . . . Power Chain Reactions . | . . . . . . . . . . . Alert | -11 -10 -9 -8 -7 -6 -6 -6 -5 -5 -4 ------- Run | Yrd Mat Mat Mat Fac Fac Low Low Fac Ext Fac Maximum Alert Level 1 | . . 1 . . . . . . . 1 Low Security (%) 92 | 100 100 92 100 100 100 . . 100 100 73 Level 1 7 | . . 7 . . . . . . . 26 Level 2 . | . . . . . . . . . . . Level 3 . | . . . . . . . . . . . Level 4 . | . . . . . . . . . . . Level 5 . | . . . . . . . . . . . High Security . | . . . . . . . . . . . Max Security . | . . . . . . . . . . . Peak Influence 289 | 10 119 210 164 74 8 . . 80 74 289 Initial 74 | . . 42 70 74 8 . . . 24 . Average 55 | 1 30 77 62 46 2 . . 24 20 114 Influence Increases 1633 | 20 227 245 234 14 . . . 150 224 519 Destroy 0b10 Robot/C 640 | . 160 120 80 . . . . . 100 180 Destroy 0b10 Robot/NC 95 | 20 10 25 . . . . . . 15 25 Destroy Leader 118 | . 42 24 10 . . . . . 12 30 Allied During Kill 8 | . . . . . . . . . 8 . Successful Hack 24 | . . . . 14 . . . . 10 . Disable Machine 195 | . 15 60 . . . . . . 30 90 Destroy Structure 238 | . . 16 24 . . . . . 34 164 Partial Spotted 45 | . . . 30 . . . . . 15 . Lose Combat Pursuer 270 | . . . 90 . . . . 150 . 30 Influence Decreases 1444 | 20 124 181 237 160 18 . . 100 274 330 Entered New Map 284 | . . 61 97 90 10 . . . 26 . Time Decay 820 | 20 124 100 120 60 8 . . 50 178 160 Lost Part 295 | . . 20 20 10 . . . 50 25 170 Lost Ally 45 | . . . . . . . . . 45 . Squads Dispatched 14 | . 3 2 1 1 . . . 1 2 4 Investigation 3 | . 1 1 . 1 . . . . . . Extermination 1 | . . . . . . . . . . 1 Reinforcement 10 | . 2 1 1 . . . . 1 2 3 Assault . | . . . . . . . . . . . Garrison . | . . . . . . . . . . . Intercept . | . . . . . . . . . . . Searches Triggered . | . . . . . . . . . . . Construction Impeded 2 | . . . . . . . . . 1 1 Haulers Reinforced 1 | . . . . . . . . . . 1 Active Scanning Responses . | . . . . . . . . . . . Cargo Convoy Interrupts . | . . . . . . . . . . . Stealth | -11 -10 -9 -8 -7 -6 -6 -6 -5 -5 -4 --------- Run | Yrd Mat Mat Mat Fac Fac Low Low Fac Ext Fac Distress Signals 7 | . . 3 2 . . . . . 1 1 Communications Jammed 5 | . . . . . . . . . 5 . Distress Signals 5 | . . . . . . . . . 5 . Times Spotted 103 | . 15 15 15 1 3 1 . 19 10 24 Peak Tracking Total 11 | . 4 8 11 1 3 1 . 10 6 6 Tactical Retreats 7 | . . . 2 . . . . 4 . 1 Traps | -11 -10 -9 -8 -7 -6 -6 -6 -5 -5 -4 ------- Run | Yrd Mat Mat Mat Fac Fac Low Low Fac Ext Fac Traps Triggered 7 | . 1 1 . . 1 . . 1 3 . Indirectly . | . . . . . . . . . . . Trap Hack Attempts . | . . . . . . . . . . . Triggered . | . . . . . . . . . . . Disarmed . | . . . . . . . . . . . Reprogrammed . | . . . . . . . . . . . Reused . | . . . . . . . . . . . Traps Extracted . | . . . . . . . . . . . Installed . | . . . . . . . . . . . Triggered . | . . . . . . . . . . . Machines | -11 -10 -9 -8 -7 -6 -6 -6 -5 -5 -4 ---------- Run | Yrd Mat Mat Mat Fac Fac Low Low Fac Ext Fac Machines Disabled 13 | . 1 4 . . . . . . 2 6 Max in Single Turn 5 | . 1 3 . . . . . . 2 5 Energy Cycler 1 | . . . . . . . . . 1 . Machines Repaired . | . . . . . . . . . . . Machines Dismantled . | . . . . . . . . . . . Machines Sabotaged . | . . . . . . . . . . . Overloaded Fab Kills . | . . . . . . . . . . . Hacking | -11 -10 -9 -8 -7 -6 -6 -6 -5 -5 -4 --------- Run | Yrd Mat Mat Mat Fac Fac Low Low Fac Ext Fac Machines Accessed 5 | . . . . 1 . . . . 3 1 Terminals 4 | . . . . 1 . . . . 3 . Fabricators . | . . . . . . . . . . . Repair Stations . | . . . . . . . . . . . Recycling Units 1 | . . . . . . . . . . 1 Scanalyzers . | . . . . . . . . . . . Garrison Access . | . . . . . . . . . . . Total Hacks 9 | . . . . 3 . . . . 4 2 Successful 6 | . . . . 1 . . . . 3 2 Failed 3 | . . . . 2 . . . . 1 . Catastrophic 1 | . . . . 1 . . . . . . Database Lockouts . | . . . . . . . . . . . Manual 3 | . . . . 3 . . . . . . Terminals 7 | . . . . 3 . . . . 4 . Fabricators . | . . . . . . . . . . . Repair Stations . | . . . . . . . . . . . Recycling Units 2 | . . . . . . . . . . 2 Scanalyzers . | . . . . . . . . . . . Garrison Access . | . . . . . . . . . . . Terminal Hacks 3 | . . . . . . . . . 3 . Open Door 3 | . . . . . . . . . 3 . Fabricator Hacks . | . . . . . . . . . . . Repair Station Hacks . | . . . . . . . . . . . Recycling Unit Hacks 2 | . . . . . . . . . . 2 Report Inventory 1 | . . . . . . . . . . 1 Retrieve Components 1 | . . . . . . . . . . 1 Scanalyzer . | . . . . . . . . . . . Garrison Access Hacks . | . . . . . . . . . . . Unauthorized Hacks 1 | . . . . 1 . . . . . . Terminals 1 | . . . . 1 . . . . . . Assimilate 1 | . . . . 1 . . . . . . Fabricators . | . . . . . . . . . . . Repair Stations . | . . . . . . . . . . . Recycling Units . | . . . . . . . . . . . Scanalyzers . | . . . . . . . . . . . Garrison Access . | . . . . . . . . . . . Data Cores Recovered 1 | . . 1 . . . . . . . . Used . | . . . . . . . . . . . Hacking Detections 2 | . . . . 1 . . . . 1 . Full Trace Events 1 | . . . . 1 . . . . . . Feedback Events 1 | . . . . 1 . . . . . . Hackware Fried 1 | . . . . 1 . . . . . . Feedback Blocked . | . . . . . . . . . . . Robot Schematics Acquired . | . . . . . . . . . . . Robots Built . | . . . . . . . . . . . Authchips . | . . . . . . . . . . . Time . | . . . . . . . . . . . Total Robot Build Rating . | . . . . . . . . . . . Part Schematics Acquired . | . . . . . . . . . . . Parts Built . | . . . . . . . . . . . Authchips . | . . . . . . . . . . . Time . | . . . . . . . . . . . Total Part Build Rating . | . . . . . . . . . . . Part Studies Acquired . | . . . . . . . . . . . Parts Repaired . | . . . . . . . . . . . Time . | . . . . . . . . . . . Parts Recycled . | . . . . . . . . . . . Recycled Matter . | . . . . . . . . . . . Retrieved Matter . | . . . . . . . . . . . Retrieved Components 1 | . . . . . . . . . . 1 Parts Scanalyzed . | . . . . . . . . . . . Part Schematics Acquired . | . . . . . . . . . . . Parts Damaged . | . . . . . . . . . . . Bothacking | -11 -10 -9 -8 -7 -6 -6 -6 -5 -5 -4 ------------ Run | Yrd Mat Mat Mat Fac Fac Low Low Fac Ext Fac Used RIF Installer . | . . . . . . . . . . . Robots Hacked . | . . . . . . . . . . . Non-combat . | . . . . . . . . . . . Combat . | . . . . . . . . . . . Robot Hacks Applied . | . . . . . . . . . . . Relay Couplers Released . | . . . . . . . . . . . Fabnet Peak Effective % . | . . . . . . . . . . . Robots Rewired . | . . . . . . . . . . . Allies Hacked . | . . . . . . . . . . . Hacks Repelled . | . . . . . . . . . . . Allies | -11 -10 -9 -8 -7 -6 -6 -6 -5 -5 -4 -------- Run | Yrd Mat Mat Mat Fac Fac Low Low Fac Ext Fac Total Allies 5 | . . . . . . . . . 5 . Largest Group 5 | . . . . . . . . . 5 . Highest-Rated Group 167 | . . . . . . . . . 167 . Highest-Rated Ally 39 | . . . . . . . . . 39 . Total Orders . | . . . . . . . . . . . Ally Attacks 76 | . . . . . . . . . 76 . Total Damage 1484 | . . . . . . . . . 1484 . Kills 8 | . . . . . . . . . 8 . Allies Corrupted . | . . . . . . . . . . . Allies Melted 1 | . . . . . . . . . 1 . Intel | -11 -10 -9 -8 -7 -6 -6 -6 -5 -5 -4 ------- Run | Yrd Mat Mat Mat Fac Fac Low Low Fac Ext Fac Active Infowar (turns) 2816 | 73 467 219 249 131 58 345 108 198 476 492 Optics 2255 | . . 198 249 131 58 345 108 198 476 492 Sensors 865 | . . . . . . 208 108 198 351 . Terrain 753 | 73 467 213 . . . . . . . . Cloaking 490 | . . . . . . 302 108 79 . 1 Jamming 867 | . . . . . . . . 197 476 194 Robot Analysis Total . | . . . . . . . . . . . Derelict Logs Recovered 1 | . . . . . . 1 . . . . Drone Launches . | . . . . . . . . . . . Drone Recoveries . | . . . . . . . . . . . Exploration | -11 -10 -9 -8 -7 -6 -6 -6 -5 -5 -4 ------------- Run | Yrd Mat Mat Mat Fac Fac Low Low Fac Ext Fac Turns Passed 3094 | 149 467 219 249 131 58 345 108 198 476 694 Spaces Moved 3647 | 99 303 175 220 263 110 699 245 362 603 568 Core 87 | 11 . . . . . . . . . 76 Treads . | . . . . . . . . . . . Legs 846 | 88 303 101 . . . . . . 23 331 Wheels . | . . . . . . . . . . . Hover 2714 | . . 74 220 263 110 699 245 362 580 161 Flight . | . . . . . . . . . . . Fastest Speed 44 | 50 120 52 52 44 44 44 44 44 48 50 Average Speed 67 | 112 120 91 52 44 44 44 44 45 56 106 Slowest Speed 190 | 120 120 120 52 44 44 44 44 53 131 190 Overloaded Moves . | . . . . . . . . . . . Propulsion Burnouts . | . . . . . . . . . . . Robots Hopped . | . . . . . . . . . . . Potential Cave-ins . | . . . . . . . . . . . Cave-ins Triggered . | . . . . . . . . . . . Exploration Rate (%) 25 | 4 41 28 25 6 2 60 27 15 51 20 Regions Visited 10 Branch Regions 3 Pre-discovered Areas 1 | . . . . . . 1 . . . . Known Exits Taken 2 | . . . . . . . . 1 1 . Unknown Exits Taken 8 | 1 1 1 1 1 1 1 1 . . . Scrap Searched 8 | . . . . . . 8 . . . . Spaces Dug 5 | . . . 5 . . . . . . . Terrain Destroyed 191 | . . 14 25 . . . . . 7 145 Melee . | . . . . . . . . . . . Projectile 27 | . . . 25 . . . . . 2 . AOE 164 | . . 14 . . . . . . 5 145 Terrain Rammed . | . . . . . . . . . . . Walls Destroyed . | . . . . . . . . . . . Machines Disabled . | . . . . . . . . . . . Actions | -11 -10 -9 -8 -7 -6 -6 -6 -5 -5 -4 --------- Run | Yrd Mat Mat Mat Fac Fac Low Low Fac Ext Fac Total 4094 | 117 365 212 324 278 117 730 244 379 690 638 Wait 96 | . . 5 65 1 . . . . 2 23 Move 3637 | 98 302 174 219 262 109 698 244 361 602 568 Hop . | . . . . . . . . . . . Pick Up 65 | 4 14 6 4 5 4 8 . 5 3 12 Fast Attach 43 | 7 3 3 6 2 . 5 . 1 7 9 Attach 29 | . . 4 3 3 2 . . 6 5 6 Detach 8 | . 3 2 . . . . . . 1 2 Swap 13 | . 1 2 5 1 . 4 . . . . Drop 51 | . 15 3 8 4 1 12 . . 2 6 Fire 122 | 8 27 13 14 . 1 3 . 6 40 10 Melee . | . . . . . . . . . . . Ram . | . . . . . . . . . . . Kick 2 | . . . . . . . . . . 2 Crush . | . . . . . . . . . . . Escape Stasis 27 | . . . . . . . . . 27 . Rewire . | . . . . . . . . . . . Trap . | . . . . . . . . . . . Miscellaneous 1 | . . . . . . . . . 1 . Route ------- -11/Scrapyard -10/Materials -9/Materials -8/Materials -7/Factory -6/Factory -6/Lower Caves -6/Lower Caves -5/Factory -5/Extension -4/Factory History --------- Turn | Location | Event 2 | -11/Scrapyard | Met Revision 17 11 | -11/Scrapyard | Discovered new exit (range 14) 150 | -11/Scrapyard | Entered Materials 322 | -10/Materials | Build established: Mutant 599 | -10/Materials | Discovered new exit (range 16) 617 | -10/Materials | Entered another Materials area 617 | -9/Materials | Evolved 2 slots: Propulsion x1, Utility x1 834 | -9/Materials | Discovered new exit (range 5) 836 | -9/Materials | Entered another Materials area 836 | -8/Materials | Evolved 2 slots: Utility x2 1080 | -8/Materials | Discovered new exit (range 11) 1085 | -8/Materials | Entered Factory 1085 | -7/Factory | Evolved 2 slots: Propulsion x2 1177 | -7/Factory | Hacking Suite fried by hacking feedback 1213 | -7/Factory | Discovered new exit (range 8) 1216 | -7/Factory | Entered another Factory area 1216 | -6/Factory | Evolved 2 slots: Power x1, Weapon x1 1266 | -6/Factory | Assembled infested ambush trap array 1266 | -6/Factory | Discovered new exit (range 11) 1274 | -6/Factory | Entered Lower Caves 1591 | -6/Lower Caves | Build established: Derelict-Skirmisher 1609 | -6/Lower Caves | Discovered new exit (range 5) 1619 | -6/Lower Caves | Entered another Lower Caves area 1722 | -6/Lower Caves | Discovered new exit (range 8) 1727 | -6/Lower Caves | Entered Factory 1727 | -5/Factory | Evolved 2 slots: Power x1, Utility x1 1886 | -5/Factory | Lost 5 parts (2n1u2w) 1921 | -5/Factory | Discovered new exit (range 8) 1924 | -5/Factory | Identified exit to Extension 1925 | -5/Factory | Entered Extension 2002 | -5/Extension | Rescued a captive Derelict 2004 | -5/Extension | Rescued a captive Derelict 2032 | -5/Extension | Rescued a captive Derelict 2033 | -5/Extension | Rescued a captive Derelict 2067 | -5/Extension | Spotted B-75 Beast 2072 | -5/Extension | Rescued a captive Derelict 2119 | -5/Extension | Build established: Derelict-Scout 2150 | -5/Extension | Energy Cycler disabled 2154 | -5/Extension | Rescued a captive Derelict 2294 | -5/Extension | Allies destroyed B-75 Beast 2315 | -5/Extension | Lost 7 parts (1p3n2u1w) 2336 | -5/Extension | Spotted B-75 Beast 2340 | -5/Extension | Discovered new exit (range 19) 2400 | -5/Extension | Identified exit to Factory 2401 | -5/Extension | Entered Factory 2401 | -4/Factory | Evolved 2 slots: Propulsion x1, Utility x1 2405 | -4/Factory | Lost 3 allies 2430 | -4/Factory | Lost 10 parts (2p3n1u4w) 2768 | -4/Factory | Lost 4 parts (1n1u2w) 2932 | -4/Factory | Lost 10 parts (1p2n5u2w) 3036 | -4/Factory | Build established: Mutant 3042 | -4/Factory | Core integrity fell below 50% 3075 | -4/Factory | Lost 3 parts (1p2n) 3092 | -4/Factory | Spotted B-86 Titan 3095 | -4/Factory | Destroyed by B-86 Titan via exploding Fusion Modulator Last Messages --------------- 03044_ Slug penetrates Wall. 03044_ Penetrated by Slug. 03044_ Imp. Linear Gravjet destroyed. 03045_ K-01 Serf collects debris. 03046_ R-10 Processor collects Adv. System Restoration Module. 03049_ Slug penetrates Wall. 03055_ O-24 Administrator: "IFF HANDSHAKE FAILED. SECURING TERMINAL." 03072_ ALERT: Hostiles spotted, dispatching reinforcements to Terminal F008. 03072_ Imp. Corruption Screen intercepted 1% system corruption. 03078_ R-10 Processor destroyed. 03078_ Imp. Corruption Screen intercepted 1% system corruption. 03079_ R-10 Processor collects Corrupted Field Recycling Unit. 03080_ K-01 Serf collects debris. 03081_ Imp. Corruption Screen intercepted 1% system corruption. 03082_ K-01 Serf collects debris. 03084_ Dropped Imp. Linear Gravjet. 03085_ Acquired Prototype Power Core. 03094_ Acquired 1 matter. 03095_ Fusion Modulator explodes. Map ----- +----------------------------------------------------+ | ?????????????????????????????????????????????????? | | ?????????????????????????????????????????????????? | | ?????????????????????????????????????????????????? | | ?????????????????????????????????????????????????? | | ?????????????????????????????????????????????????? | | ?????????????????????????????????????????????????? | | ?????????????????????????????????????????????????? | | ?????????????????????????????????????????????????? | | ?????????????????????????????????????????????????? | | ?????????????????????????????????????????????????? | | ?????????????????????????????????????????????????? | | ???????????????????????????? ???????????????????? | | ??????????????????????????? #??????????????????? | | ??????????????????????????? #??????????????????? | | ??????????????????????????? #??????????????????? | | ??????????????????????????? #??????????????????? | | ???????????????????######## ###????????????????? | | ????????????????#### #????????????????? | | ????????????????? #????????????????? | | ????????????????? #????????????????? | | ??????????????????""" !!! +????????????????? | | ??????????????"" """ !!! k #????????????????? | | ??????????????"T k""" !!! u #????????????????? | | ????????????? "" #????????????????? | | ????????????? "" #?????????????????? | | ?????????? @ #?????????????????? | | ?????????? #??????????????#### | | ?????????? #??????????????# | | ?????????? #??????????????# | | ?????????? #??????????????# | | ?????????? ##;#;BB# #??????????????# | | ??????????? ??####BB# #??????????????# | | ???????????? ???######## #??????????????# | | ????????????? ????# [ #??????????????###/ | | ??????????????????# +????????????????# | | ??????????????????# #????????????????# | | ??????????????????# """ *!! #????????????????# | | ??????????????????# """ *!! #????????????????# | | ????????????????""" """ ^!! #????????????????# | | ????????????????"F" ^ =p ################## | | ???????????????#" """ """ %! | | ???????????????#""" """ """ | | ?????????????????"" """ """ | | ?????????????????## | | ??????????????????# | | ????????????????????############################+# | | ?????????????????????????????????????????????????? | | ?????????????????????????????????????????????????? | | ?????????????????????????????????????????????????? | | ?????????????????????????????????????????????????? | +----------------------------------------------------+ Best States ------------- Heat Dissipation 74 Coolant Potential 50 Energy Generation 32 Energy Capacity 510 Matter Stores 300 Matter Capacity 300 Sight Range 22 Robot Scan Range 16 Terrain Scan Range 16 Terrain Scan Density 10 Jamming Range 12 Cloak Strength 2 EM Shielding 2 Corruption Block 15 Armor Coverage 375 Evasion (%) 63 Targeting Accuracy 6 Energy Filtering 30 Offensive Hacking 20 Item Schematics ----------------- None Robot Schematics ------------------ None Fabricated ------------ Nothing Repaired ---------- Nothing Studied --------- None Alien Tech Used ----------------- None Achievements -------------- None Challenges ------------ None Game ------ Seed ThermicHeatShielding Manual? 0 Play Time 01:01:37 Cumulative 101.5 hours Start 2026.01.27 @ 15:11:38 End 2026.01.29 @ 14:32:36 Sessions 15 Manual Loads 0 Difficulty Rogue Special Mode None Game No. 131 Rogue 131 Adventurer 0 Explorer 0 Win Type - Total 1 Types 1/0/0/0/0/0/0/0/0/0 Lore% 24 Gallery% 44 Achievement% 29 Wizard Run 0 Options --------- Layout 0 ASCII 0 Keyboard 0 Movement Mouse Keybinds 0 Fullscreen 1 Font 24/Smallcaps Map View 76x50 Zoom Use 0% Tactical HUD 1 Map Filters NONE Filters NONE Steam 1 RUN: 3d0bacdb-413f-4cd8-bb19-b4f5f2724c96